bitfinex/quotes_ETHUSD_20250106
["timestamp","ask_amount","ask_price","bid_price","bid_amount"]
[1736171227907,0.84658886,3642.1,3641.4,0.02745869]
[1736171228318,0.04288886,3642.1,3641.6,0.0843]
[1736171228628,1.15055839,3642.3,3641.9,3.0843]
[1736171228842,1.15055839,3642.3,3641.9,2.83008]
[1736171228843,0.04244863,3642.0,3641.9,2.83008]
[1736171229000,1.15055839,3642.3,3642.1,3.0]
[1736171229539,1.15055839,3642.4,3642.1,3.0]
[1736171230438,1.15055839,3642.4,3641.9,0.0843]
[1736171230639,1.15055839,3642.4,3641.9,2.83005]
[1736171230839,1.15055839,3642.8,3642.2,0.0843]
[1736171231035,1.15055839,3642.8,3642.2,0.11175231]
[1736171231237,1.15055839,3642.8,3642.2,2.85728231]
[1736171231432,1.15055839,3642.8,3642.2,0.11175231]
[1736171231849,1.15055839,3642.8,3642.5,0.0843]
[1736171232147,1.15055839,3642.8,3642.5,0.11175061]
[1736171232458,0.04309992,3642.7,3642.5,0.11175061]
[1736171232807,0.04309992,3642.7,3642.5,0.0843]
[1736171233009,2.10002188,3642.9,3642.5,0.11175032]
[1736171233255,0.04311417,3642.6,3642.5,0.11175032]
[1736171233547,1.72665081,3643.1,3642.5,0.11175032]
[1736171233548,1.15055839,3643.1,3642.5,0.11175032]
[1736171233955,0.04334598,3643.0,3642.5,0.11175032]
[1736171234733,0.04334598,3643.0,3642.5,3.11175032]
[1736171234937,0.04334598,3643.0,3642.5,0.11175032]
[1736171235165,0.04334598,3643.0,3642.5,0.0843]
[1736171235329,0.04334598,3643.0,3642.7,2.7452]
[1736171236142,0.04334598,3643.0,3642.5,0.1117491]
[1736171236338,0.04334598,3643.0,3642.5,2.8570791]
[1736171237533,1.15055839,3643.4,3642.5,2.8570791]
[1736171237736,0.04337565,3642.9,3642.5,2.8570791]
[1736171237950,0.04333599,3642.8,3642.5,2.8570791]
[1736171238259,2.74469,3643.4,3642.6,3.0]
[1736171238428,3.102169,3643.4,3642.7,0.027449]
[1736171239163,0.357479,3643.4,3642.7,0.027449]
[1736171239370,0.76967098,3645.3,3644.9,2.74353]
[1736171239570,0.76967098,3645.3,3645.0,0.11173229]
[1736171240066,6.4645015,3645.3,3645.0,0.11173229]
[1736171240262,5.69483052,3645.3,3645.0,0.11173176]
[1736171240442,5.69483052,3645.3,3645.0,0.0843]
[1736171241167,5.69483052,3645.3,3644.9,2.77096184]
[1736171241463,5.69483052,3645.3,3644.2,2.82838]
[1736171241464,0.0342898,3645.2,3644.2,2.82838]
[1736171242026,0.0342898,3645.2,3644.3,2.74399]
[1736171242222,0.56948305,3645.3,3644.2,0.0843]
[1736171242223,0.56948305,3645.3,3644.4,0.02743536]
[1736171242431,0.8182,3645.4,3644.8,2.7436]
[1736171242629,0.8182,3645.4,3644.5,0.0075]
[1736171242928,0.8182,3645.4,3644.6,3.0]
[1736171243172,1.14736192,3645.6,3644.9,2.74352]
[1736171243407,1.14736192,3645.6,3645.2,2.74332]
[1736171243408,0.03045125,3645.3,3645.2,2.74332]
[1736171244263,0.7999,3645.8,3645.2,2.74332]
[1736171244468,0.7999,3645.8,3645.3,0.02742949]
[1736171244626,0.03060965,3645.7,3645.3,2.74321]
[1736171244831,0.03060965,3645.7,3645.3,2.77063949]
[1736171245061,0.7999,3645.8,3645.3,2.77063949]
[1736171245235,0.7999,3645.8,3645.3,0.02742949]
[1736171245429,0.03074069,3645.7,3645.6,5.74303]
[1736171245625,0.7762,3646.5,3645.7,3.0]
[1736171245870,0.7762,3646.5,3645.8,0.02742465]
[1736171246046,0.03045223,3646.4,3645.8,0.02742465]
[1736171246248,0.03045223,3646.4,3645.9,3.0]
[1736171246580,0.03045223,3646.4,3645.9,3.02742488]
[1736171248238,0.03045223,3646.4,3645.6,3.0]
[1736171248469,0.03045223,3646.4,3645.6,5.74303]
[1736171248852,0.03045223,3646.4,3645.6,3.0]
[1736171249070,0.7762,3646.5,3645.9,3.0]
[1736171249282,0.7762,3646.5,3645.9,3.02742484]
[1736171249437,0.03101339,3646.4,3645.9,3.02742484]
[1736171254405,0.03101339,3646.4,3645.9,3.0]
[1736171254704,0.03101339,3646.4,3645.9,3.0274248]
[1736171255381,0.03101339,3646.4,3645.9,0.0274248]
[1736171255574,1.35836775,3647.0,3646.2,2.74258]
[1736171255780,0.03132819,3646.9,3646.2,2.74258]
[1736171256080,0.03132819,3646.9,3646.3,2.7425]
[1736171257386,0.03132819,3646.9,3646.1,2.74264]
[1736171257774,0.06560568,3646.9,3646.1,2.74264]
[1736171258107,0.03427749,3646.9,3646.1,2.74264]
[1736171258409,0.03128862,3646.8,3646.1,2.74264]
[1736171258603,1.39264524,3647.0,3646.1,2.74264]
[1736171258799,0.03132819,3646.9,3646.1,2.74264]
[1736171260474,0.03132819,3646.9,3646.2,0.02742198]
[1736171260872,0.03132819,3646.9,3646.2,2.77000198]
[1736171261110,0.03132819,3646.9,3646.2,2.85430198]
[1736171261309,0.03132819,3646.9,3646.8,35.0]
[1736171261731,0.7691,3647.3,3646.8,35.0]
[1736171261872,0.7691,3647.3,3646.9,0.02741798]
[1736171262080,0.7691,3647.3,3646.8,37.74209]
[1736171262276,0.7691,3647.3,3646.8,35.0]
[1736171263405,0.7691,3647.3,3646.9,0.02741653]
[1736171263777,0.8125,3647.8,3646.9,0.02741653]
[1736171263977,0.03112593,3647.7,3646.9,0.02741653]
[1736171264228,1.36460497,3647.8,3647.0,2.74194]
[1736171264678,2.74147,3647.7,3646.6,5.82657]
[1736171264877,0.8168,3647.4,3646.6,3.0843]
[1736171265099,0.8168,3647.4,3647.1,35.0]
[1736171265300,0.03094088,3647.3,3647.1,35.0]
[1736171265485,0.8168,3647.4,3647.1,35.0]
[1736171270325,0.8168,3647.4,3647.2,0.08574869]
[1736171271029,3.49736,3647.7,3647.1,35.0]
[1736171271198,3.49736,3647.7,3647.2,0.02741554]
[1736171271398,0.7559,3647.7,3647.3,0.08574814]
[1736171272005,0.7559,3647.7,3647.4,0.08574814]
[1736171272605,0.7559,3647.7,3647.1,35.0]
[1736171273336,2.74155,3647.6,3647.2,0.08574685]
[1736171273932,0.03163592,3647.5,3647.2,0.08574685]
[1736171274101,2.74168,3647.4,3647.3,0.08574685]
[1736171274454,2.77315201,3647.4,3647.3,0.08574685]
[1736171275403,0.03147201,3647.4,3647.3,0.08574685]
[1736171275606,2.77579956,3647.6,3647.3,0.08574685]
[1736171275831,0.03148766,3647.5,3647.3,0.08574685]
[1736171276246,0.03148766,3647.5,3647.1,35.0]
[1736171276824,0.03148766,3647.5,3647.2,0.0857529]
[1736171277239,0.03148766,3647.5,3647.3,0.0857529]
[1736171277828,0.03148766,3647.5,3647.1,35.0]
[1736171278646,0.03148766,3647.5,3647.2,0.08575289]
[1736171279239,0.03148766,3647.5,3647.3,0.08575289]
[1736171279715,0.03148766,3647.5,3647.1,35.0]
[1736171280144,0.03148766,3647.5,3647.2,0.08575289]
[1736171280532,0.03148766,3647.5,3647.2,0.1131692]
[1736171280756,0.03148766,3647.5,3647.3,0.08575289]
[1736171281103,0.7559,3647.7,3647.4,0.02741385]
[1736171281226,0.53681292,3647.9,3647.4,0.11316674]
[1736171281751,0.53681292,3647.9,3647.5,35.08575289]
[1736171282271,0.53681292,3647.9,3647.6,0.08575289]
[1736171282822,0.53681292,3647.9,3647.5,35.0]
[1736171283730,0.53681292,3647.9,3647.6,0.08574311]
[1736171284129,0.53681292,3647.9,3647.7,0.08574311]
[1736171284861,0.53681292,3647.9,3647.5,35.0]
[1736171284862,0.03183858,3647.8,3647.5,35.0]
[1736171285453,0.53681292,3647.9,3647.6,0.0857432]
[1736171285973,0.03183858,3647.8,3647.6,0.0857432]
[1736171286264,0.03183858,3647.8,3647.7,0.0857432]
[1736171288579,0.03183858,3647.8,3647.7,35.0857432]
[1736171290488,2.77320858,3647.8,3647.7,35.0857432]
[1736171290666,0.03183858,3647.8,3647.7,35.0857432]
[1736171290986,0.98036726,3647.8,3647.7,35.0857432]
[1736171291186,0.94852868,3647.8,3647.7,35.0857432]
[1736171291401,0.98037663,3647.8,3647.7,35.0857432]
[1736171292291,4.19647901,3647.8,3647.7,35.0857432]
[1736171292454,4.97887901,3647.8,3647.7,35.0857432]
[1736171292656,4.97887901,3647.8,3647.7,35.0]
[1736171293983,5.92740769,3647.8,3647.7,35.0]
[1736171294190,3.18603769,3647.8,3647.7,35.0]
[1736171295482,4.33398057,3647.8,3647.7,35.0]
[1736171297014,3.18603769,3647.8,3647.7,35.0]
[1736171297879,5.92740769,3647.8,3647.7,35.0]
[1736171298110,7.07535057,3647.8,3647.7,35.0]
[1736171298310,4.33398057,3647.8,3647.7,35.0]
[1736171299611,4.67875284,3647.8,3647.7,35.0]
[1736171299921,0.8302,3647.4,3646.7,0.0843]
[1736171300126,0.86447196,3647.4,3646.7,0.0843]
[1736171300324,0.03171777,3647.3,3647.0,35.0]
[1736171301931,0.03171777,3647.3,3647.1,0.08575432]
[1736171302114,2.37178974,3647.2,3647.1,0.08575432]
[1736171302322,2.40346795,3647.2,3647.1,0.08575432]
[1736171305644,3.55271491,3647.2,3647.1,0.08575432]
[1736171308047,2.40346795,3647.2,3647.1,0.08575432]
[1736171309550,4.11722346,3647.2,3647.1,0.08575432]
[1736171311936,4.11722346,3647.2,3647.0,35.0]
[1736171313253,2.37178974,3647.1,3647.0,35.0]
[1736171313430,2.40345918,3647.1,3647.0,35.0]
[1736171313959,2.40345918,3647.1,3647.0,35.08575448]
[1736171318463,2.40345918,3647.1,3647.0,38.08575448]
[1736171319441,3.55425752,3647.1,3647.0,38.08575448]
[1736171320775,3.55425752,3647.1,3647.0,40.91202448]
[1736171320934,0.98019812,3647.1,3647.0,40.91952448]
[1736171321492,0.94852868,3647.1,3647.0,40.91952448]
[1736171321785,0.98009588,3647.1,3647.0,40.91952448]
[1736171322670,0.0315672,3647.1,3647.0,40.91952448]
[1736171322871,0.94852868,3647.3,3647.1,3.0]
[1736171323174,0.94852868,3647.3,3647.2,5.76923552]
[1736171323377,0.94852868,3647.3,3647.2,5.74182]
[1736171323578,1.15079834,3647.5,3647.2,5.74182]
[1736171323778,1.15079834,3647.5,3647.3,2.76910477]
[1736171324155,1.15079834,3647.5,3647.4,0.08575448]
[1736171324857,1.15079834,3647.5,3647.4,5.91172448]
[1736171325117,1.18143418,3647.5,3647.4,3.17005448]
[1736171325356,1.18143418,3647.5,3647.4,3.0843]
[1736171325793,0.03063584,3647.5,3647.4,3.0843]
[1736171326171,1.15079834,3647.8,3647.4,3.0843]
[1736171326435,1.15079834,3647.8,3647.4,3.17003779]
[1736171326590,0.03071495,3647.7,3647.4,3.17003779]
[1736171326965,1.15079834,3647.8,3647.4,3.17003779]
[1736171327168,0.0306754,3647.6,3647.5,0.08573779]
[1736171327367,2.37798095,3647.7,3647.5,0.08573779]
[1736171327567,2.37798095,3647.7,3647.6,5.77643329]
[1736171327771,2.37798095,3647.7,3647.6,5.92655779]
[1736171328192,2.37798095,3647.7,3647.6,40.92655779]
[1736171328489,0.95119238,3647.7,3647.6,40.92655779]
[1736171329780,0.95119238,3647.7,3647.6,41.48405779]
[1736171330402,1.15079834,3648.5,3648.3,2.7485]
[1736171330558,1.15079834,3648.5,3648.3,5.8328]
[1736171330998,1.15079834,3648.5,3648.3,38.17003779]
[1736171331496,1.15079834,3648.5,3648.3,38.0843]
[1736171332001,1.15079834,3648.9,3648.3,38.0843]
[1736171334291,1.15079834,3649.0,3648.3,38.0843]
[1736171335102,0.7522,3648.6,3648.3,35.0]
[1736171335970,3.49299,3648.6,3648.3,35.0]
[1736171336171,0.7522,3648.6,3648.3,35.0]
[1736171336807,3.5272419,3648.6,3648.3,35.0]
[1736171337183,3.49298,3648.6,3648.3,35.0]
[1736171338066,4.64377834,3648.6,3648.3,35.0]
[1736171340567,1.90299834,3648.6,3648.3,35.0]
[1736171342107,0.7522,3648.6,3648.3,35.0]
[1736171342899,0.00169559,3648.4,3648.3,35.0]
[1736171343808,0.00169559,3648.4,3647.7,2.82575]
[1736171344007,0.00169559,3648.4,3647.8,0.0274095]
[1736171344205,0.00169559,3648.4,3648.3,35.0]
[1736171346205,2.74261559,3648.4,3648.3,35.0]
[1736171346404,3.09552334,3648.4,3648.3,35.0]
[1736171347206,3.86532334,3648.4,3648.3,35.0]
[1736171350592,3.51241559,3648.4,3648.3,35.0]
[1736171352011,2.51241559,3648.4,3648.3,35.0]
[1736171352186,0.7698,3648.4,3648.3,35.0]
[1736171352388,3.51072,3648.4,3648.3,35.0]
[1736171353402,4.45922796,3648.4,3648.3,35.0]
[1736171354218,4.49349164,3648.4,3648.3,35.0]
[1736171354420,5.19634576,3648.4,3648.3,35.0]
[1736171354906,7.77007013,3648.4,3648.3,35.0]
[1736171355221,7.73580645,3648.4,3648.3,35.0]
[1736171356328,7.03295233,3648.4,3648.3,35.0]
[1736171356523,5.88215399,3648.4,3648.3,35.0]
[1736171358412,2.37143399,3648.4,3648.3,35.0]
[1736171359118,2.37143399,3648.4,3648.3,35.0843]
[1736171359431,1.14778756,3648.5,3648.3,35.0843]
[1736171360187,0.8043,3648.4,3648.3,35.0]
[1736171360842,3.54522,3648.4,3648.3,35.0]
[1736171361830,7.06551767,3648.4,3648.3,35.0]
[1736171362918,5.91773011,3648.4,3648.3,35.0]
[1736171364625,3.17681011,3648.4,3648.3,35.0]
[1736171366021,5.91773011,3648.4,3648.3,35.0]
[1736171367141,7.63148562,3648.4,3648.3,35.0]
[1736171368214,4.89056562,3648.4,3648.3,35.0]
[1736171368409,4.08626562,3648.4,3648.3,35.0]
[1736171368607,4.27363728,3648.4,3648.3,35.0]
[1736171370180,2.37251011,3648.4,3648.3,35.0]
[1736171371552,4.0974013,3648.4,3648.3,35.0]
[1736171373151,6.8383213,3648.4,3648.3,35.0]
[1736171373357,5.28854139,3648.4,3648.3,35.0]
[1736171374560,7.75065509,3648.4,3648.3,35.0]
[1736171375333,10.49157509,3648.4,3648.3,35.0]
[1736171377561,7.75065509,3648.4,3648.3,35.0]
[1736171377970,10.49157509,3648.4,3648.3,35.0]
[1736171378172,12.23615755,3648.4,3648.3,35.0]
[1736171379242,10.49157509,3648.4,3648.3,35.0]
[1736171380476,11.06282693,3648.4,3648.3,35.0]
[1736171387393,11.09300545,3648.4,3648.3,35.0]
[1736171388281,11.09300545,3648.4,3647.5,0.0843]
[1736171388488,2.74123,3648.0,3647.5,0.0843]
[1736171388689,2.74123,3648.0,3647.6,35.08573651]
[1736171389232,2.74123,3648.0,3647.7,0.08573651]
[1736171389537,0.03426615,3648.1,3647.7,0.08573651]
[1736171389710,0.03426615,3648.1,3647.8,0.08573651]
[1736171389905,0.03426615,3648.1,3647.9,35.0]
[1736171390105,2.33642456,3648.1,3647.9,35.0]
[1736171390305,2.74122,3648.0,3647.9,35.0]
[1736171391035,2.77125576,3648.0,3647.9,35.0]
[1736171391366,7.05434443,3648.0,3647.9,35.0]
[1736171391548,8.24548452,3648.0,3647.9,35.0]
[1736171392148,5.50426452,3648.0,3647.9,35.0]
[1736171397271,7.80642293,3648.0,3647.9,35.0]
[1736171397733,10.54764293,3648.0,3647.9,35.0]
[1736171398078,7.80642293,3648.0,3647.9,35.0]
[1736171400689,2.74164,3647.5,3647.0,1.14194164]
[1736171400814,1.19114009,3647.1,3647.0,1.14194164]
[1736171401012,1.22076933,3647.1,3647.0,36.14194164]
[1736171401232,3.96731479,3647.1,3647.0,1.14194164]
[1736171401436,3.99660528,3647.1,3647.0,1.14194164]
[1736171401655,3.96233058,3647.1,3647.0,1.14194164]
[1736171402057,0.02929049,3647.1,3647.0,1.14194164]
[1736171402372,0.02929049,3647.1,3647.0,0.0843]
[1736171402577,1.72674217,3647.2,3647.0,0.0843]
[1736171402879,0.02847391,3647.1,3647.0,0.0843]
[1736171403172,0.02847391,3647.1,3647.0,5.82627]
[1736171403313,2.40796761,3647.1,3647.0,40.82627]
[1736171404488,0.02847391,3647.1,3647.0,40.82627]
[1736171404892,1.14987413,3647.6,3647.3,3.0843]
[1736171405059,1.14987413,3647.6,3647.3,3.11171425]
[1736171405386,0.02887923,3647.5,3647.3,3.11171425]
[1736171406582,1.14987413,3647.8,3647.4,0.0843]
[1736171406882,1.14987413,3647.8,3647.5,3.0843]
[1736171407047,1.14987413,3647.8,3647.5,3.11171256]
[1736171407388,0.02850133,3647.7,3647.5,3.11171256]
[1736171407590,2.10051452,3647.9,3647.5,0.02741256]
[1736171407794,2.10051452,3647.9,3647.6,0.0843]
[1736171408508,1.14987413,3648.0,3647.8,4.27544009]
[1736171408688,1.14987413,3648.0,3647.9,0.11170923]
[1736171408893,1.14987413,3648.0,3647.9,5.85300923]
[1736171409062,1.14987413,3648.0,3647.9,5.8256]
[1736171409692,0.95064039,3648.3,3648.0,3.0]
[1736171409996,0.95064039,3648.3,3647.9,2.8256]
[1736171410158,0.95064039,3648.3,3648.0,0.02740886]
[1736171410986,0.02878112,3648.2,3648.0,0.02740886]
[1736171411179,2.10051452,3648.5,3648.0,0.02740886]
[1736171411344,0.02874159,3648.1,3648.0,0.02740886]
[1736171411545,2.10051452,3648.5,3648.0,0.02740886]
[1736171411794,0.02895022,3648.1,3648.0,0.02740886]
[1736171412035,1.14987413,3648.6,3648.0,0.02740886]
[1736171412164,0.02896465,3648.1,3648.0,0.02740886]
[1736171412363,1.14987413,3648.6,3648.0,0.02740886]
[1736171412579,0.02896465,3648.1,3648.0,0.02740886]
[1736171412773,1.14987413,3648.6,3648.1,0.0843]
[1736171412978,1.14987413,3648.6,3648.2,0.02740697]
[1736171413306,1.14987413,3648.6,3648.3,0.0843]
[1736171413453,1.14987413,3648.6,3648.4,0.02740583]
[1736171413649,1.14987413,3648.6,3648.5,35.0]
[1736171414072,0.94996431,3648.7,3648.5,35.0]
[1736171414549,0.0293368,3648.6,3648.5,35.0]
[1736171415847,1.14987413,3649.0,3648.5,35.0]
[1736171416254,0.02960745,3648.9,3648.5,35.0]
[1736171416892,0.02960745,3648.9,3648.6,0.02740454]
[1736171417463,1.14987413,3649.1,3648.7,0.0843]
[1736171417669,0.02956787,3648.8,3648.7,0.0843]
[1736171417869,1.14987413,3649.1,3648.7,0.0843]
[1736171418214,0.02964697,3649.0,3648.7,0.0843]
[1736171418392,0.00274,3649.2,3648.7,0.0843]
[1736171418599,0.00274,3649.2,3648.5,35.0]
[1736171418600,0.029716,3648.9,3648.5,35.0]
[1736171418771,2.74307,3649.2,3648.5,35.0]
[1736171419094,0.02970402,3648.8,3648.5,35.0]
[1736171419294,0.7662,3648.9,3648.5,35.0]
[1736171419791,0.02976492,3648.8,3648.5,35.0]
[1736171422058,0.02976492,3648.8,3648.6,0.0843]
[1736171422362,0.0294056,3648.7,3648.6,0.11170617]
[1736171422674,1.15261413,3649.2,3648.6,0.11170617]
[1736171422873,1.15261413,3649.2,3648.7,0.0843]
[1736171423187,0.02952522,3649.1,3648.8,0.02740238]
[1736171423398,0.02952522,3649.1,3649.0,38.0]
[1736171423590,1.15261413,3649.2,3649.0,38.0843]
[1736171423913,0.00274,3649.2,3649.0,38.0843]
[1736171424962,0.00274,3649.2,3649.0,35.0]
[1736171428680,3.4916,3649.1,3649.0,35.0]
[1736171429067,3.52153658,3649.1,3649.0,35.0]
[1736171430075,4.16895786,3649.1,3649.0,35.0]
[1736171430504,4.16895786,3649.1,3647.8,0.0843]
[1736171430505,0.7638,3649.0,3647.8,0.0843]
[1736171430808,0.7873,3648.1,3647.3,0.0843]
[1736171431110,3.52848,3648.1,3648.0,35.0]
[1736171431609,0.7873,3648.1,3648.0,35.0]
[1736171433012,3.52845,3648.1,3648.0,35.0]
[1736171433191,3.59162944,3648.1,3648.0,35.0]
[1736171433408,4.49220779,3648.1,3648.0,35.0]
[1736171434580,3.59162944,3648.1,3648.0,35.0]
[1736171441332,2.74136,3647.9,3647.0,0.0918]
[1736171441665,0.06306363,3647.8,3647.0,0.0918]
[1736171442180,0.06306363,3647.8,3647.7,35.0]
[1736171443319,2.74136,3647.9,3647.7,35.0]
[1736171443472,2.74136,3647.9,3647.0,3.0918]
[1736171443672,0.06289053,3647.8,3647.1,0.02741348]
[1736171443874,0.06289053,3647.8,3647.7,35.0]
[1736171444316,2.74136,3647.9,3647.7,35.0]
[1736171444497,0.82156686,3648.1,3647.0,0.0918]
[1736171444701,2.74145,3647.7,3647.0,0.0918]
[1736171444918,1.33859105,3648.1,3647.6,35.0]
[1736171444919,2.7413,3647.9,3647.6,35.0]
[1736171445281,0.06290209,3647.8,3647.0,0.0918]
[1736171446018,2.80427209,3647.8,3647.7,35.0]
[1736171447120,3.56317209,3647.8,3647.7,35.0]
[1736171447318,4.5126312,3647.8,3647.7,35.0]
[1736171451716,4.54690079,3647.8,3647.7,35.0]
[1736171452498,4.5126312,3647.8,3647.7,35.0]
[1736171452925,4.5126312,3647.8,3646.6,0.0843]
[1736171452926,2.7419,3647.1,3646.6,0.0843]
[1736171453299,0.06035542,3647.0,3646.6,0.0843]
[1736171453930,0.06035542,3647.0,3646.9,35.0]
[1736171454625,2.7419,3647.1,3646.9,35.0]
[1736171459536,0.7871,3647.2,3646.9,35.0]
[1736171459934,3.52894,3647.2,3646.9,35.0]
[1736171462132,2.77624554,3647.1,3646.9,35.0]
[1736171462434,2.74205,3646.9,3646.3,0.0843]
[1736171462604,0.03427564,3646.8,3646.3,0.0843]
[1736171462797,2.80207414,3646.8,3646.3,0.0843]
[1736171464935,0.8074,3646.7,3646.1,35.0]
[1736171465133,3.54961,3646.7,3646.1,35.0]
[1736171467868,2.74228,3646.6,3646.1,35.0]
[1736171468767,0.8074,3646.7,3646.1,35.0]
[1736171469064,2.74237,3646.5,3646.1,35.0]
[1736171469263,0.03427871,3646.6,3646.1,35.0]
[1736171469264,2.74244,3646.4,3646.1,35.0]
[1736171469916,0.03427871,3646.6,3646.1,35.0]
[1736171470139,2.74231,3646.6,3646.1,35.0]
[1736171470523,0.05921545,3646.5,3646.1,35.0]
[1736171472114,3.5496,3646.7,3646.1,35.0]
[1736171472745,0.05925409,3646.6,3646.1,35.0]
[1736171473048,3.5496,3646.7,3646.1,35.0]
[1736171473249,0.05901212,3646.5,3646.1,35.0]
[1736171473443,3.5496,3646.7,3646.1,35.0]
[1736171473650,0.05897349,3646.4,3646.1,35.0]
[1736171473954,3.88779064,3647.1,3646.2,0.02742409]
[1736171474134,0.8071,3647.0,3646.3,0.0843]
[1736171474320,3.60829141,3647.0,3646.3,0.0843]
[1736171474648,0.05920141,3647.0,3646.4,2.76980287]
[1736171474868,0.05920141,3647.0,3646.7,0.0843]
[1736171475011,0.05920141,3647.0,3646.7,0.1117183]
[1736171475209,0.05920141,3647.0,3646.8,35.0]
[1736171475408,1.14586064,3647.1,3646.8,35.0]
[1736171476155,3.88734064,3647.7,3646.8,35.0]
[1736171476370,3.88734064,3647.7,3646.9,0.02741689]
[1736171476815,3.88734064,3647.7,3647.0,0.0843]
[1736171477014,3.88734064,3647.7,3647.1,35.0]
[1736171477464,3.51873144,3647.6,3647.1,35.0]
[1736171477614,6.26027144,3647.6,3647.1,35.0]
[1736171479018,1.00870452,3647.5,3647.1,35.0]
[1736171479972,0.0595562,3647.5,3647.3,0.0843]
[1736171480184,0.0595562,3647.5,3647.4,2.74167]
[1736171480488,0.0595562,3647.5,3647.3,0.0843]
[1736171480634,0.0595562,3647.5,3647.3,0.11171449]
[1736171481968,1.96606064,3648.1,3647.3,3.11171449]
[1736171482195,0.0576557,3647.4,3647.3,3.11171449]
[1736171482490,1.96606064,3648.1,3647.3,3.11171449]
[1736171482491,1.14586064,3648.1,3647.3,3.11171449]
[1736171482675,1.14586064,3648.1,3647.8,0.0843]
[1736171483006,0.05799869,3648.0,3647.8,3.11170994]
[1736171483271,1.14586064,3648.2,3647.8,3.11170994]
[1736171484142,3.88658064,3648.7,3647.8,3.0843]
[1736171484342,3.9208406,3648.7,3647.8,3.0843]
[1736171485171,2.37188745,3648.6,3647.8,3.0843]
[1736171486081,0.05624552,3648.5,3647.8,3.0843]
[1736171487390,0.05624552,3648.5,3647.9,0.02740797]
[1736171487587,0.05624552,3648.5,3647.8,3.0843]
[1736171487885,0.05598725,3648.4,3647.8,3.0843]
[1736171488090,3.88658064,3648.7,3647.8,3.0843]
[1736171488296,0.05594865,3648.3,3647.8,3.0843]
[1736171488463,3.88658064,3648.7,3647.8,3.0843]
[1736171488674,0.05591005,3648.2,3647.8,3.0843]
[1736171488904,0.03425998,3648.8,3647.8,5.82567]
[1736171489070,0.05587144,3648.1,3647.9,0.02740804]
[1736171489282,5.20382371,3648.9,3647.9,0.02740804]
[1736171489586,0.05583284,3648.0,3647.8,5.82567]
[1736171489752,2.77490006,3648.8,3647.9,0.02740806]
[1736171489954,0.05610303,3648.7,3647.9,0.02740806]
[1736171490174,0.05610303,3648.7,3647.8,5.82567]
[1736171490526,2.79680303,3648.7,3647.8,3.0843]
[1736171490694,2.79680303,3648.7,3647.8,5.82567]
[1736171490989,2.79680303,3648.7,3647.8,3.0843]
[1736171491494,2.79350405,3648.7,3647.8,3.0843]
[1736171491882,0.05280405,3648.7,3647.8,3.0843]
[1736171492088,0.05280405,3648.7,3647.8,5.82566]
[1736171492292,0.05280405,3648.7,3648.0,0.0843]
[1736171492589,0.0561818,3648.6,3648.0,0.0843]
[1736171492903,0.03426003,3648.8,3648.0,0.0843]
[1736171493204,0.05614321,3648.5,3648.0,0.11170802]
[1736171493379,1.31739307,3648.9,3648.0,2.85292802]
[1736171493709,0.54169307,3648.9,3648.2,3.0]
[1736171493904,0.05638661,3648.8,3648.4,0.0843]
[1736171494228,0.05638661,3648.8,3648.7,8.46392798]
[1736171494455,1.14586064,3649.1,3648.8,5.74058]
[1736171494706,1.14860064,3649.2,3649.0,3.0]
[1736171494935,1.14860064,3649.2,3648.9,3.0]
[1736171495387,1.14860064,3649.2,3648.9,2.76794193]
[1736171496616,0.00274,3649.2,3648.9,2.76794193]
[1736171497488,0.00274,3649.2,3649.0,2.82477]
[1736171497603,0.00274,3649.2,3649.1,0.02740064]
[1736171498717,0.00274,3649.2,3649.1,2.76780064]
[1736171500526,0.00274,3649.2,3649.1,5.76780064]
[1736171500686,0.00274,3649.2,3649.1,5.8397]
[1736171501496,0.00274,3649.2,3649.1,40.8397]
[1736171502340,0.00274,3649.2,3649.1,41.3972]
[1736171502829,1e-05,3649.2,3649.1,41.3972]
[1736171503534,1.57496778,3651.0,3649.6,0.015]
[1736171503743,0.42910714,3651.0,3650.9,5.63892798]
[1736171504100,0.42910714,3651.0,3650.9,40.63892798]
[1736171504796,0.42910714,3651.0,3650.9,38.0]
[1736171505787,0.42910714,3651.0,3650.9,38.015]
[1736171506377,0.42910714,3651.0,3650.9,40.75405]
[1736171507026,0.42910714,3651.0,3650.9,38.015]
[1736171507207,0.42910714,3651.0,3650.9,38.0]
[1736171508655,0.42910714,3651.0,3650.9,38.015]
[1736171508852,0.42910714,3651.0,3650.9,40.75405]
[1736171509062,0.42910714,3651.0,3650.9,43.47727798]
[1736171511603,0.42910714,3651.0,3650.9,40.73822798]
[1736171511816,0.42910714,3651.0,3650.9,38.0993]
[1736171512114,0.42910714,3651.0,3650.9,35.0]
[1736171512411,1.24130714,3651.0,3650.2,0.0843]
[1736171512582,1.24130714,3651.0,3650.2,3.0843]
[1736171512780,0.05781123,3650.9,3650.3,35.0]
[1736171512977,0.05781123,3650.9,3650.4,0.02738955]
[1736171513312,0.42910714,3651.0,3650.5,3.015]
[1736171513487,0.42910714,3651.0,3650.2,0.0843]
[1736171513488,0.05751756,3650.8,3650.7,3.015]
[1736171513686,0.42910714,3651.0,3650.7,38.015]
[1736171513879,0.42910714,3651.0,3650.9,2.75405]
[1736171514077,0.42910714,3651.0,3650.9,8.47727798]
[1736171515768,0.42910714,3651.0,3650.9,3.0993]
[1736171516204,0.42910714,3651.0,3650.9,3.12668485]
[1736171516383,0.42910714,3651.0,3650.9,5.86573485]
[1736171516580,0.42910714,3651.0,3650.9,5.83835]
[1736171517575,0.42910714,3651.0,3650.9,8.47727798]
[1736171520897,0.42910714,3651.0,3650.9,43.47727798]
[1736171521898,0.42910714,3651.0,3650.9,44.03477798]
[1736171524340,0.42910714,3651.0,3650.9,43.47727798]
[1736171525965,0.42910714,3651.0,3650.9,44.03477798]
[1736171529357,0.8122,3651.9,3651.0,3.0]
[1736171529510,0.8122,3651.9,3651.4,3.015]
[1736171530255,0.8122,3651.9,3651.7,35.0]
[1736171532965,3.56622,3652.4,3651.8,0.02738171]
[1736171533135,0.8283,3652.4,3651.7,35.0]
[1736171533450,2.738,3652.3,3651.7,35.0]
[1736171533669,2.79504752,3652.3,3651.7,35.0]